Cogmind - Beta 16 --- EXPLORER MODE // 2025.12.08 @ 13:29:59 Player: K.K.Y. Result: Destroyed by QO-50A(R) with Subdweller Beam Cannon Performance ------------- Evolutions (0) 0 Regions Visited (3) 600 Robots Destroyed (36) 180 Value Destroyed (772) 772 Prototype IDs (12) 240 Alien Tech Used (0) 0 Bonus (0) 0 TOTAL SCORE: 1792 Bonus ------- None Cogmind --------- Core Integrity 0/250 Matter 290/300 Energy 200/200 System Corruption 0% Temperature Cool (9) Movement Rolling (80) Location -10/Subcaves Parts ------- > --- POWER (1) -------- Subdweller Power Source > --- PROPULSION (2) --- Wheel > --- UTILITY (3) ------ Weight Redist. System > --- WEAPON (2) ------- Hammer > --- INVENTORY (5) ---- Structural Scanner Machine Analyzer Autobeam Makeshift Shrapnel Gun Mining Laser Peak State ------------ > --- POWER ------------ Light Nuclear Core > --- PROPULSION ------- Flight Unit Flight Unit > --- UTILITY ---------- Weight Redist. System Structural Scanner Improved Terrain Scanner > --- WEAPON ----------- Powered Cannon > --- INVENTORY -------- Autobeam Makeshift Shrapnel Gun Mining Laser Hammer [Rating: 25] Favorites ----------- Power Light Nuclear Core Engine Light Ion Engine Power Core Light Nuclear Core Propulsion Aluminum Leg Leg Aluminum Leg Wheel Wheel Hover Unit Hover Unit Flight Unit Flight Unit Utility Targeting Computer Device Weight Redist. System Processor Targeting Computer Weapon Light Assault Rifle Energy Gun Small Laser Energy Cannon Powered Cannon Ballistic Gun Light Assault Rifle Impact Weapon Hammer Build | -11 -10 -10 -10 ------- Run | Yrd Mat Min Sub Slots Evolved 1 | . 1 . . Power . | . . . . Propulsion . | . . . . Utility 1 | . 1 . . Weapon . | . . . . Parts Attached 27 | 7 7 2 11 Power 4 | 1 2 . 1 Engine 2 | 1 . . 1 Core 2 | . 2 . . Reactor . | . . . . Propulsion 9 | 2 3 1 3 Treads . | . . . . Leg 4 | 2 2 . . Wheel 1 | . . . 1 Hover 2 | . 1 1 . Flight 2 | . . . 2 Utility 5 | 2 2 . 1 Device 3 | . 2 . 1 Storage . | . . . . Processor 2 | 2 . . . Hackware . | . . . . Protection . | . . . . Artifact . | . . . . Weapon 9 | 2 . 1 6 Energy Gun 3 | 1 . 1 1 Energy Cannon 1 | . . . 1 Ballistic Gun 4 | 1 . . 3 Ballistic Cannon . | . . . . Launcher . | . . . . Special Weapon . | . . . . Impact Weapon 1 | . . . 1 Slashing Weapon . | . . . . Piercing Weapon . | . . . . Special Melee Weapon . | . . . . Unidentified Prototypes . | . . . . Parts Lost 5 | . 2 . 3 Power 3 | . 2 . 1 Propulsion 1 | . . . 1 Utility . | . . . . Weapon 1 | . . . 1 Highest Loss Streak 2 | . 1 . 2 To Critical Strikes . | . . . . Average Backups 3 | . 3 3 4 Power . | . . . . Propulsion . | . . . . Utility 1 | . 1 1 1 Weapon 1 | . 1 2 2 Tool/Special . | . . . . Unused Backups 2 | . . . 2 Power . | . . . . Propulsion . | . . . . Utility 1 | . . . 1 Weapon 1 | . . . 1 Tool/Special . | . . . . Average Slot Usage (%) 77 | . 80 80 71 Engine 3 | . 6 . 1 Core 7 | . 2 12 9 Leg 7 | . 17 . . Hover 8 | . 3 17 10 Flight 3 | . . . 10 Device 14 | . 5 25 19 Processor 9 | . 20 . . Energy Gun 9 | . 10 12 6 Energy Cannon 1 | . . . 3 Ballistic Gun 10 | . 12 12 6 Peak Build Rating 25 | 7 9 11 25 Average Rating 9 | 6 7 10 14 On Entrance 6 | . 7 9 11 Avg Prop Armor Cover (%) . | . . . . Naked Turns . | . . . . Heaviest Build 16 | 5 8 10 16 Greatest Support 20 | 20 20 18 18 Greatest Overweight (x) 2 | . 1 . 2 Average Overweight (x) . | . . . . Largest Inventory Capacity 5 | 5 5 5 5 Average Capacity 5 | 5 5 5 5 Most Carried 5 | 5 5 4 5 Average Carried 3 | 1 3 3 4 Final Capacity 5 | 5 5 5 5 Final Carried 5 | 2 3 3 5 Class Distribution -------------------- 95% | Hacker-Mutant 4% | Scavenger-Mutant Dominant Class ---------------- Hacker-Mutant | -10/Materials Hacker-Mutant | -10/Mines Hacker-Mutant | -10/Subcaves Resources | -11 -10 -10 -10 ----------- Run | Yrd Mat Min Sub Matter Collected 611 | 269 94 78 170 Remotely . | . . . . Salvage Created 1147 | 202 619 98 228 Parts 75 | 16 40 6 13 Haulers Intercepted 2 | . 2 . . Recyclers Shooed . | . . . . Parts Field Recycled . | . . . . Retrieved Matter . | . . . . Parts Self-Destructed . | . . . . Prevented . | . . . . Parts Restored . | . . . . Kills | -11 -10 -10 -10 ------- Run | Yrd Mat Min Sub Combat Hostiles Destroyed 19 | . 10 2 7 Melee 1 | . . . 1 Guns 17 | . 10 2 5 Classes Destroyed 9 | 2 4 . 3 Worker 3 | 2 1 . . Tunneler 8 | 7 . 1 . Hauler 2 | . 2 . . Mechanic 1 | . 1 . . Turret 2 | . . . 2 Watcher 1 | . 1 . . Swarmer 4 | . . . 4 Grunt 12 | . 10 2 . Subdweller 3 | . . . 3 Best Kill Streak 5 | 5 5 2 4 Combat Bots Only 4 | . 4 2 2 Max Kills in Single Turn 1 | 1 1 1 1 Gunslinging . | . . . . Exploded . | . . . . Melee 1 | . . . 1 Uniques/NPCs Destroyed . | . . . . Combat | -11 -10 -10 -10 -------- Run | Yrd Mat Min Sub Hostile Shots Fired 134 | . 43 10 81 Missed 38 | . 10 . 28 Hits 96 | . 33 10 53 Projectile 96 | . 33 10 53 Critical Strikes 1 | . . . 1 Damage Taken 853 | . 255 78 520 Core 267 | . 67 7 193 Absorbed by Shields . | . . . . Ignored by Resistances 524 | . 158 48 318 Core Remaining (%) 100 | 100 . . . Volleys Fired 101 | 17 46 8 30 Largest 2 | 2 2 2 2 Hottest 90 | 60 60 85 90 Shots Fired 187 | 34 89 16 48 Gun 178 | 34 89 16 39 Cannon 9 | . . . 9 Launcher . | . . . . Special . | . . . . Kinetic 92 | 17 46 8 21 Thermal 95 | 17 43 8 27 Explosive . | . . . . Electromagnetic . | . . . . Robot Hit Streak 28 | 24 16 22 28 Robot Miss Streak 3 | 1 1 . 3 Penetration Max . | . . . . Secondary Targets 6 | . 5 1 . Max Gunslinging Chain 1 | . 1 1 . Autonomous 4 | . . . 4 Shots Hit Robots 157 | 26 75 15 41 Core Hits 64 | 12 33 6 13 Critical Kills 1 | . . . 1 Critical Parts Destroyed . | . . . . Critical Strikes 1 | . . . 1 Meltdown 1 | . . . 1 Melee Attacks 3 | . . . 3 Impact 3 | . . . 3 Slashing . | . . . . Piercing . | . . . . Sneak Attacks . | . . . . Combat Hostiles . | . . . . Follow-up Attacks . | . . . . Damage Inflicted 2161 | 264 740 153 1004 Guns 1623 | 264 740 153 466 Cannons 441 | . . . 441 Explosions . | . . . . Melee 97 | . . . 97 Ramming . | . . . . Kinetic 688 | 89 306 54 239 Thermal 1376 | 175 434 99 668 Explosive . | . . . . Electromagnetic . | . . . . Impact 97 | . . . 97 Slashing . | . . . . Piercing . | . . . . Highest Corruption . | . . . . Average Corruption . | . . . . Corruption Purged . | . . . . Corruption Blocked . | . . . . Overload Shots . | . . . . Overflow Damage 7 | . . . 7 Projectiles 7 | . . . 7 Explosions . | . . . . Melee . | . . . . Knockbacks . | . . . . Impact . | . . . . Kinetic . | . . . . Secondary . | . . . . Self-Inflicted Damage . | . . . . Shots . | . . . . Rammed . | . . . . Targets Rammed . | . . . . Kicked . | . . . . Crushed . | . . . . Highest Temperature 149 | 40 114 145 149 Average Temperature 41 | 17 45 67 32 Received Heat Transfer 681 | . 228 72 381 Siege Activations . | . . . . Martial Activations . | . . . . Shielding Activations . | . . . . Robots Disrupted . | . . . . Combat Hostiles . | . . . . Robots Corrupted . | . . . . Combat Hostiles . | . . . . Parts Fried . | . . . . Impact Corruptions . | . . . . Robots Melted 1 | . . . 1 Combat Hostiles 1 | . . . 1 Parts Melted 1 | . . . 1 Heat Transferred 2231 | 400 975 224 632 Parts Sabotaged . | . . . . Parts Stolen . | . . . . Parts Stripped . | . . . . Power Chain Reactions . | . . . . Alert | -11 -10 -10 -10 ------- Run | Yrd Mat Min Sub Maximum Alert Level . | . . . . Low Security (%) 100 | 100 100 100 . Level 1 . | . . . . Level 2 . | . . . . Level 3 . | . . . . Level 4 . | . . . . Level 5 . | . . . . High Security . | . . . . Max Security . | . . . . Peak Influence 65 | 10 65 50 . Initial . | . . . . Average 9 | 2 14 5 . Influence Increases 575 | 45 295 55 180 Destroy 0b10 Robot/C 360 | . 200 40 120 Destroy 0b10 Robot/NC 75 | 45 25 5 . Destroy Leader 46 | . 36 10 . Successful Hack 4 | . 4 . . Lose Combat Pursuer 90 | . 30 . 60 Influence Decreases 575 | 45 295 55 180 Time Decay 563 | 45 283 55 180 Lost Part 12 | . 12 . . Squads Dispatched . | . . . . Investigation . | . . . . Extermination . | . . . . Reinforcement . | . . . . Assault . | . . . . Garrison . | . . . . Intercept . | . . . . Searches Triggered . | . . . . Construction Impeded . | . . . . Haulers Reinforced . | . . . . Active Scanning Responses . | . . . . Cargo Convoy Interrupts . | . . . . Stealth | -11 -10 -10 -10 --------- Run | Yrd Mat Min Sub Distress Signals 1 | . 1 . . Communications Jammed . | . . . . Distress Signals . | . . . . Times Spotted 33 | . 17 2 14 Peak Tracking Total 4 | . 4 2 4 Tactical Retreats 4 | . 2 . 2 Traps | -11 -10 -10 -10 ------- Run | Yrd Mat Min Sub Traps Triggered 1 | . 1 . . Indirectly . | . . . . Trap Hack Attempts . | . . . . Triggered . | . . . . Disarmed . | . . . . Reprogrammed . | . . . . Reused . | . . . . Traps Extracted . | . . . . Installed . | . . . . Triggered . | . . . . Machines | -11 -10 -10 -10 ---------- Run | Yrd Mat Min Sub Machines Disabled 2 | . . . 2 Max in Single Turn 1 | . . . 1 Machines Repaired . | . . . . Machines Dismantled . | . . . . Machines Sabotaged . | . . . . Overloaded Fab Kills . | . . . . Hacking | -11 -10 -10 -10 --------- Run | Yrd Mat Min Sub Machines Accessed 8 | . 6 1 1 Terminals 7 | . 6 1 . Fabricators . | . . . . Repair Stations . | . . . . Recycling Units . | . . . . Scanalyzers . | . . . . Garrison Access . | . . . . Total Hacks 11 | . 9 1 1 Successful 8 | . 6 1 1 Failed 3 | . 3 . . Catastrophic . | . . . . Database Lockouts . | . . . . Manual 9 | . 8 1 . Terminals 10 | . 9 1 . Fabricators . | . . . . Repair Stations . | . . . . Recycling Units . | . . . . Scanalyzers . | . . . . Garrison Access . | . . . . Terminal Hacks 2 | . 1 . 1 Terminal Index 1 | . 1 . . Proto ID Catalog 1 | . . . 1 Fabricator Hacks . | . . . . Repair Station Hacks . | . . . . Recycling Unit Hacks . | . . . . Scanalyzer . | . . . . Garrison Access Hacks . | . . . . Unauthorized Hacks 6 | . 5 1 . Terminals 6 | . 5 1 . Botnet 6 | . 5 1 . Fabricators . | . . . . Repair Stations . | . . . . Recycling Units . | . . . . Scanalyzers . | . . . . Garrison Access . | . . . . Data Cores Recovered . | . . . . Used . | . . . . Hacking Detections 4 | . 3 1 . Full Trace Events . | . . . . Feedback Events . | . . . . Feedback Blocked . | . . . . Robot Schematics Acquired . | . . . . Robots Built . | . . . . Authchips . | . . . . Time . | . . . . Total Robot Build Rating . | . . . . Part Schematics Acquired . | . . . . Parts Built . | . . . . Authchips . | . . . . Time . | . . . . Total Part Build Rating . | . . . . Part Studies Acquired . | . . . . Parts Repaired . | . . . . Time . | . . . . Parts Recycled . | . . . . Recycled Matter . | . . . . Retrieved Matter . | . . . . Retrieved Components . | . . . . Parts Scanalyzed . | . . . . Part Schematics Acquired . | . . . . Parts Damaged . | . . . . Bothacking | -11 -10 -10 -10 ------------ Run | Yrd Mat Min Sub Used RIF Installer . | . . . . Robots Hacked . | . . . . Non-combat . | . . . . Combat . | . . . . Robot Hacks Applied . | . . . . Relay Couplers Released . | . . . . Fabnet Peak Effective % . | . . . . Robots Rewired . | . . . . Allies Hacked . | . . . . Hacks Repelled . | . . . . Allies | -11 -10 -10 -10 -------- Run | Yrd Mat Min Sub Total Allies . | . . . . Largest Group . | . . . . Highest-Rated Group . | . . . . Highest-Rated Ally . | . . . . Total Orders . | . . . . Ally Attacks . | . . . . Total Damage . | . . . . Kills . | . . . . Allies Corrupted . | . . . . Allies Melted . | . . . . Intel | -11 -10 -10 -10 ------- Run | Yrd Mat Min Sub Active Infowar (turns) 155 | . 46 . 109 Terrain 14 | . . . 14 Structural 154 | . 46 . 108 Robot Analysis Total . | . . . . Derelict Logs Recovered 1 | . . . 1 Drone Launches . | . . . . Drone Recoveries . | . . . . Exploration | -11 -10 -10 -10 ------------- Run | Yrd Mat Min Sub Turns Passed 1812 | 274 699 329 510 Spaces Moved 1554 | 137 493 416 508 Core 24 | 24 . . . Treads . | . . . . Legs 421 | 113 308 . . Wheels 19 | . . . 19 Hover 754 | . 185 416 153 Flight 336 | . . . 336 Fastest Speed 37 | 50 60 56 37 Average Speed 72 | 107 100 58 48 Slowest Speed 200 | 120 120 60 200 Overloaded Moves . | . . . . Propulsion Burnouts . | . . . . Robots Hopped . | . . . . Potential Cave-ins . | . . . . Cave-ins Triggered . | . . . . Exploration Rate (%) 51 | 7 85 93 20 Regions Visited 3 Branch Regions 2 Pre-discovered Areas 2 | . . 1 1 Known Exits Taken 3 | 1 1 1 . Unknown Exits Taken . | . . . . Scrap Searched 4 | . . . 4 Spaces Dug . | . . . . Terrain Destroyed . | . . . . Melee . | . . . . Projectile . | . . . . AOE . | . . . . Terrain Rammed . | . . . . Walls Destroyed . | . . . . Machines Disabled . | . . . . Actions | -11 -10 -10 -10 --------- Run | Yrd Mat Min Sub Total 2067 | 233 618 488 728 Wait 344 | 64 61 60 159 Move 1551 | 136 492 415 508 Hop . | . . . . Pick Up 22 | 9 5 2 6 Fast Attach 7 | . 3 . 4 Attach 16 | 7 4 1 4 Detach 4 | . 1 . 3 Swap 6 | . 2 1 3 Drop 13 | . 4 1 8 Fire 101 | 17 46 8 30 Melee 3 | . . . 3 Ram . | . . . . Kick . | . . . . Crush . | . . . . Escape Stasis . | . . . . Rewire . | . . . . Trap . | . . . . Miscellaneous . | . . . . Route ------- -11/Scrapyard -10/Materials (discovered 4 exits: *Mat x2 / *Min / Sub) -10/Mines (discovered 3 exits: *Mat x2 / *Sub) -10/Subcaves (discovered 2 exits: *Mat / *Rec) History --------- Turn | Location | Event 2 | -11/Scrapyard | Met Revision 17 8 | -11/Scrapyard | Identified exit to Materials 8 | -11/Scrapyard | Discovered exit to Materials (range 15) 275 | -11/Scrapyard | Entered Materials 275 | -10/Materials | Evolved 1 slot: Utility x1 314 | -10/Materials | Build established: Hacker-Mutant 569 | -10/Materials | Identified exit to Materials 569 | -10/Materials | Discovered exit to Materials (range 12) 822 | -10/Materials | Identified exit to Mines 822 | -10/Materials | Discovered exit to Mines (range 8) 852 | -10/Materials | Identified exit to Subcaves 852 | -10/Materials | Discovered exit to Subcaves (range 9) 863 | -10/Materials | Discovered exit to Materials (range 9) 974 | -10/Materials | Entered Mines 988 | -10/Mines | Learned location of Storage (-7) 1030 | -10/Mines | Deemed a non-threat by the Exiles lab entrance 1148 | -10/Mines | Discovered exit to Materials (range 9) 1166 | -10/Mines | Discovered exit to Materials (range 5) 1302 | -10/Mines | Discovered exit to Subcaves (range 3) 1303 | -10/Mines | Entered Subcaves 1304 | -10/Subcaves | Approached by a straggling Scientist 1321 | -10/Subcaves | Learned Materials terminal intel 1327 | -10/Subcaves | Learned location of Zion (-7) 1327 | -10/Subcaves | Met a Zionite searching for "candidates" 1330 | -10/Subcaves | Ambushed by Subdwellers from Twisted Machinery 1460 | -10/Subcaves | Identified exit to Recycling 1460 | -10/Subcaves | Discovered exit to Recycling (range 8) 1528 | -10/Subcaves | Identified exit to Materials 1528 | -10/Subcaves | Discovered exit to Materials (range 7) 1584 | -10/Subcaves | Visited 4L-MR0's lab 1590 | -10/Subcaves | Found Powered Cannon 1592 | -10/Subcaves | Attached Powered Cannon, gained temporary slot: Power 1693 | -10/Subcaves | Core integrity fell below 50% 1800 | -10/Subcaves | Core integrity fell below 20% 1813 | -10/Subcaves | Destroyed by QO-50A(R) with Subdweller Beam Cannon Last Messages --------------- 01697_ Destroyed Disposable Heat Sink. LK-QWT(c): "I think it's somewhere north of here" 01712_ LK-QWT(c) destroyed. 01719_ Lgt. Nuclear Core destroyed. 01720_ Destroyed Scrap Shield. 01720_ ZP-0CN(R) suffers critical hit (Meltdown). 01723_ Flight Unit destroyed. 01754_ Acquired Sub. Power Source. 01756_ PL-QUW(R) affixes Scrap Shield Fragment to Scrap Shield. 01757_ Powered Cannon destroyed. 01758_ Temporary Power slot lost. 01759_ PL-QUW(R) destroyed. 01766_ Acquired 15 matter. 01784_ Acquired Wheel. 01785_ Dropped Flight Unit. 01788_ Acquired Machine Analyzer. 01807_ Critical hit (Meltdown: +180). Map ----- +----------------------------------------------------+ | ?????????????????????????????????????????????????? | | ?????????????????????????????????????????????????? | | ?????????????????????????????????????????????????? | | ?????????????????????????????????????????????????? | | ?????????????????????????????????????????????????? | | ?????????????????????????????????????????????????? | | ?????????????????????????????????????????????????? | | ?????????????????????????????????????????????????? | | ?????????????????????????????????????????????????? | | ?????????????????????????????????????????????????? | | ???????????????? #???????????????????????????????? | | ????????????????? #?????""???????????????????????? | | ????????????????? "#???" ???????????????????????? | | ?????????????????? " ?## ???????????????????????? | | ??????????????????? "" ????????????????????????? | | ???????????????????? "" ????????????????????????? | | ????????????????????? " ????????????????????????? | | ???????????????#????## #????????????????????????? | | ??????????????## ### " #????????????????????????? | | ??????????????# " ######???????????????????? | | ???????????????????# "" # ##??????????????????? | | ???????????????????### #??????????????????? | | ?????????????????????# #??????????????????? | | ???????????????????### #??????????????????? | | ???????????????????# " #??????????????????? | | ???????????????????## ##@ #??????????????????? | | ???????????????????#" # R #??????????????????? | | ???????????????????## " ##??????????????????? | | ??????????????????## "# #???????????????????? | | ?????????????????## "# #??????????????????? | | ???????????????### ### #?????????????????? | | ???????????????## ## ##?? ????????????????? | | ??????????????## "###??? ???????????????? | | ??????????????# ###???? ??????????????? | | ??????????????##!%=###???? #?????????????? | | ???????????????# *#%##????##### ##?????????????? | | ???????????????# &%##?????????####??????????????? | | ??????#######?## &!##???????????????????????????? | | ??############## *##???????????????????????????? | | ??######" "##### ##???????????????????????????# | | ??##[[#### ""### #######??????????????????????# | | ??##" #### "## ########?????????????????????# | | ??### ##" ###" #### ###?????????????????????# | | ??##" ### # ### ##??????????????????#### | | ??##"" ### ## ###??????????????????#### | | ??##"X ### ###?????????????####### # | | ??##"" ### #" ##????????????#### ### # | | ??##" #### ## ##????????????### ### | | ??##" ##[ !"# ######???????????### ### | | ??## #+##% "## #######???????????### ### | +----------------------------------------------------+ Best States ------------- Heat Dissipation 25 Energy Generation 15 Energy Capacity 200 Matter Stores 300 Matter Capacity 300 Sight Range 16 Terrain Scan Range 16 Terrain Scan Density 10 Additional Mass Support 6 Resistance: KI 35 Resistance: TH 35 Resistance: EX 35 Resistance: EM 35 Resistance: I 35 Resistance: S 35 Resistance: P 35 Evasion (%) 62 Targeting Accuracy 10 Offensive Hacking 20 Item Schematics ----------------- None Robot Schematics ------------------ None Fabricated ------------ Nothing Repaired ---------- Nothing Studied --------- None Alien Tech Used ----------------- None Achievements -------------- None Challenges ------------ None Game ------ Seed AntigravRainbowShredder Manual? 0 Play Time 00:15:17 Cumulative 176.4 hours Start 2025.12.08 @ 13:16:43 End 2025.12.08 @ 13:29:59 Sessions 1 Manual Loads 0 Difficulty Explorer Special Mode None Game No. 247 Rogue 0 Adventurer 0 Explorer 247 Win Type - Total 0 Types 0/0/0/0/0/0/0/0/0/0 Lore% 70 Gallery% 67 Achievement% 53 Wizard Run 0 Options --------- Layout 1 ASCII 0 Keyboard 0 Movement Mouse Keybinds 0 Fullscreen 1 Font 24/Smallcaps Map View 50x35 Zoom Use 0% Tactical HUD 1 Map Filters NONE Filters NONE Steam 1 RUN: b2ff2f4a-2434-4943-b6bb-f1bb99f69ac2